bitfinex/quotes_SOLUSD_20240821
["timestamp","ask_amount","ask_price","bid_price","bid_amount"]
[1724283138726,15.7425,142.95,142.88,13.7506293]
[1724283144243,7.29145776,142.96,142.9,13.09]
[1724283144446,15.6259,142.98,142.91,20.0]
[1724283144636,15.6259,142.98,142.92,1.39913465]
[1724283144945,15.6259,142.98,142.91,20.0]
[1724283146040,28.7159,142.98,142.91,20.0]
[1724283146239,28.7159,142.98,142.89,21.7872385]
[1724283146549,13.09,142.96,142.88,0.6606293]
[1724283146958,13.09,142.96,142.88,20.6606293]
[1724283147647,22.9675,142.95,142.88,20.6606293]
[1724283149757,22.9675,142.95,142.88,29.3578678]
[1724283150467,22.9675,142.95,142.89,8.6972385]
[1724283150967,22.9675,142.95,142.89,21.7872385]
[1724283152163,16.5723,142.95,142.9,0.12549]
[1724283152359,16.5723,142.95,142.9,13.09]
[1724283152932,16.5723,142.95,142.89,8.6972385]
[1724283161149,16.5723,142.95,142.9,13.34098]
[1724283162563,16.5723,142.95,142.9,13.09]
[1724283163482,16.5723,142.95,142.89,13.09]
[1724283169577,6.4734,142.94,142.88,20.7861193]
[1724283169778,6.4734,142.94,142.89,20.0]
[1724283170086,6.4734,142.94,142.88,0.6606293]
[1724283173860,15.8055,142.93,142.88,0.6606293]
[1724283177500,1.74963003,142.92,142.88,0.6606293]
[1724283179075,14.83963003,142.92,142.88,0.6606293]
[1724283179478,13.09,142.92,142.88,0.6606293]
[1724283180002,14.83981519,142.92,142.88,0.6606293]
[1724283180213,21.578,142.91,142.88,0.6606293]
[1724283180882,1.74979374,142.9,142.88,0.6606293]
[1724283181081,21.578,142.91,142.88,0.6606293]
[1724283183997,15.4981,142.89,142.82,8.6972385]
[1724283184208,1.7500171,142.88,142.8,13.09]
[1724283185107,14.8400171,142.88,142.8,13.09]
[1724283185292,13.09,142.88,142.78,8.6972385]
[1724283185485,13.09,142.86,142.78,8.6972385]
[1724283185676,1.75040977,142.85,142.77,13.09]
[1724283186184,1.75040977,142.85,142.75,8.97376028]
[1724283186185,6.4779,142.83,142.75,8.97376028]
[1724283186393,1.75059567,142.82,142.75,8.97376028]
[1724283186607,28.5881,142.8,142.74,0.8606293]
[1724283186780,1.75108567,142.79,142.74,0.8606293]
[1724283186980,28.5881,142.8,142.74,0.8606293]
[1724283187207,45.0,142.79,142.74,0.8606293]
[1724283187597,45.0,142.79,142.7,12.9506293]
[1724283187790,45.0,142.79,142.69,16.73115656]
[1724283187791,58.09,142.79,142.69,16.73115656]
[1724283187986,58.09,142.79,142.7,13.09]
[1724283188192,13.09,142.75,142.69,7.75739628]
[1724283188396,22.6184,142.77,142.68,13.09]
[1724283188608,22.6184,142.77,142.7,13.09]
[1724283188777,22.6184,142.77,142.7,23.18868833]
[1724283189313,13.09,142.75,142.61,22.42035815]
[1724283189481,1.87765518,142.74,142.64,13.09]
[1724283189680,45.12549,142.74,142.64,13.09]
[1724283189998,45.12549,142.74,142.64,12.59]
[1724283189999,13.09,142.73,142.64,12.59]
[1724283190198,45.0,142.72,142.61,2.42035815]
[1724283190409,14.84231637,142.71,142.6,9.08947393]
[1724283190582,13.09,142.71,142.62,13.09]
[1724283191113,21.5212,142.7,142.62,13.09]
[1724283191284,45.0,142.69,142.62,13.09]
[1724283191490,21.5212,142.7,142.62,13.09]
[1724283193300,21.5212,142.7,142.64,13.09]
[1724283194616,21.5212,142.7,142.63,33.18549]
[1724283194802,21.5212,142.7,142.64,20.12549]
[1724283195119,21.5212,142.7,142.64,0.12549]
[1724283195611,21.5212,142.7,142.63,0.12549]
[1724283195809,21.5212,142.7,142.62,20.0]
[1724283197212,21.5212,142.7,142.63,0.25098]
[1724283199383,21.5212,142.7,142.63,33.31098]
[1724283199615,21.5212,142.7,142.64,20.0]
[1724283199986,21.5212,142.7,142.65,1.40172173]
[1724283200187,21.5212,142.7,142.64,20.0]
[1724283201682,21.5212,142.7,142.65,1.65265309]
[1724283202710,21.5212,142.7,142.65,0.25098]
[1724283202913,15.1383,142.7,142.65,1.65262654]
[1724283203243,15.1383,142.7,142.65,34.71262654]
[1724283203709,22.0524,142.74,142.65,34.71262654]
[1724283205398,22.0524,142.74,142.66,1.40150581]
[1724283205619,22.0524,142.74,142.67,0.25098]
[1724283206693,22.0524,142.74,142.64,20.0]
[1724283206892,22.0524,142.74,142.65,0.25098]
[1724283216537,22.0524,142.74,142.65,13.47098]
[1724283217135,22.0524,142.74,142.67,13.22]
[1724283218240,23.8042449,142.74,142.67,13.22]
[1724283218444,14.97186774,142.73,142.64,20.0]
[1724283218633,1.75216631,142.72,142.63,13.22]
[1724283218837,1.75216631,142.72,142.65,20.0]
[1724283219036,13.22,142.73,142.65,20.0]
[1724283219241,13.22,142.73,142.65,33.22]
[1724283222073,22.0524,142.74,142.65,33.22]
[1724283222962,35.2724,142.74,142.65,33.22]
[1724283223275,22.0524,142.74,142.65,33.22]
[1724283223474,22.0524,142.74,142.66,0.25098]
[1724283226189,22.0524,142.74,142.69,13.22]
[1724283226357,15.8691,142.74,142.71,13.22]
[1724283226555,15.8691,142.74,142.72,0.25098]
[1724283227385,15.8691,142.74,142.65,85.0]
[1724283227566,15.8691,142.74,142.66,45.25098]
[1724283227757,15.8691,142.74,142.67,33.22]
[1724283227962,15.8691,142.74,142.68,45.25098]
[1724283228161,15.8691,142.74,142.69,20.0]
[1724283229759,15.8691,142.74,142.69,33.22]
[1724283231084,15.8691,142.74,142.7,0.25098]
[1724283231269,15.8691,142.74,142.7,0.12549]
[1724283231582,15.8691,142.74,142.69,33.22]
[1724283232483,15.8691,142.74,142.7,45.25098]
[1724283232686,15.8691,142.74,142.71,13.22]
[1724283233070,15.8691,142.74,142.7,13.47098]
[1724283233296,15.8691,142.74,142.7,0.25098]
[1724283239764,15.8691,142.74,142.7,45.25098]
[1724283240071,15.8691,142.74,142.71,33.22]
[1724283240274,15.8691,142.74,142.72,0.25098]
[1724283240665,21.7783,142.77,142.72,0.25098]
[1724283241463,21.7783,142.77,142.71,20.0]
[1724283244613,1.75141793,142.76,142.71,20.0]
[1724283245196,1.7514177,142.76,142.7,13.22]
[1724283245398,1.7514177,142.76,142.64,30.61097393]
[1724283245568,29.8177,142.75,142.66,13.22]
[1724283245769,6.1325,142.73,142.66,13.22]
[1724283245968,7.88436021,142.73,142.66,13.22]
[1724283246697,6.1325,142.73,142.66,13.22]
[1724283247774,6.1325,142.73,142.67,20.0]
[1724283252110,6.1325,142.73,142.66,13.22]
[1724283252417,6.1325,142.73,142.67,20.0]
[1724283252793,15.8901,142.72,142.65,0.12549]
[1724283252998,17.6419568,142.72,142.64,9.08947393]
[1724283253301,13.22,142.69,142.64,9.08947393]
[1724283253484,13.22,142.69,142.6,6.4323971]
[1724283253485,1.7524187,142.68,142.6,6.4323971]
[1724283253812,1.7524187,142.68,142.59,0.8606293]
[1724283253813,15.8901,142.67,142.59,14.0806293]
[1724283254019,15.8901,142.67,142.61,22.30947393]
[1724283255303,6.1828,142.66,142.61,9.08947393]
[1724283255513,6.1828,142.66,142.59,0.8606293]
[1724283255692,7.93560761,142.66,142.59,0.8606293]
[1724283256408,34.7524,142.65,142.59,0.8606293]
[1724283256594,1.75314954,142.64,142.59,0.8606293]
[1724283257004,21.5324,142.65,142.59,0.8606293]
[1724283259722,34.7524,142.65,142.59,0.8606293]
[1724283261626,21.5324,142.65,142.59,0.8606293]
[1724283263229,23.28527561,142.65,142.59,0.8606293]
[1724283263408,21.5324,142.65,142.59,0.8606293]
[1724283271813,34.7524,142.65,142.59,0.8606293]
[1724283272221,21.5324,142.65,142.59,0.8606293]
[1724283280421,13.22,142.66,142.59,0.8606293]
[1724283280422,79.6488,142.64,142.59,0.8606293]
[1724283280742,41.96880734,142.64,142.59,0.8606293]
[1724283281116,34.6488,142.64,142.59,0.8606293]
[1724283281322,1.75312628,142.63,142.59,0.8606293]
[1724283282033,1.75312641,142.62,142.59,0.8606293]
[1724283282235,60.3848,142.62,142.59,0.8606293]
[1724283282435,15.3848,142.62,142.59,0.8606293]
[1724283285130,6.4452,142.61,142.59,0.8606293]
[1724283291933,15.3848,142.62,142.59,0.8606293]
[1724283299059,1.75312975,142.61,142.59,0.8606293]
[1724283299451,1.75344851,142.6,142.59,0.8606293]
[1724283300562,1.75348286,142.61,142.59,0.8606293]
[1724283304569,1.7533268,142.6,142.59,0.8606293]
[1724283305286,14.9733268,142.6,142.59,0.8606293]
[1724283305466,60.0988168,142.6,142.59,0.8606293]
[1724283306274,60.0988168,142.6,142.5,13.22]
[1724283306275,76.1257068,142.6,142.5,13.22]
[1724283306479,45.0,142.59,142.5,13.22]
[1724283306665,45.0,142.59,142.51,20.0]
[1724283306869,1.75396934,142.58,142.51,20.0]
[1724283307181,1.7539607,142.57,142.51,20.0]
[1724283307682,1.7539607,142.57,142.49,33.22]
[1724283308872,35.4683,142.56,142.47,28.4078]
[1724283309182,35.4683,142.56,142.45,0.8606293]
[1724283309183,1.7542247,142.55,142.45,0.8606293]
[1724283309489,45.0,142.55,142.47,13.22]
[1724283309692,42.4831,142.56,142.47,13.22]
[1724283309979,8.76954277,142.55,142.47,13.22]
[1724283310161,8.76954277,142.55,142.45,9.95010323]
[1724283310363,7.0162,142.53,142.45,9.95010323]
[1724283310580,8.77137447,142.52,142.46,13.22]
[1724283310788,45.0,142.54,142.45,0.8606293]
[1724283310789,8.77168291,142.51,142.45,0.8606293]
[1724283310965,7.0176,142.5,142.45,0.8606293]
[1724283311573,7.018,142.49,142.45,0.8606293]
[1724283311764,7.0186,142.48,142.45,0.8606293]
[1724283311964,7.0181,142.49,142.45,0.8606293]
[1724283313401,13.22,142.5,142.45,0.8606293]
[1724283313562,7.0195,142.46,142.45,0.8606293]
[1724283314493,21.9947193,142.46,142.45,0.8606293]
[1724283314895,8.7747193,142.46,142.45,0.8606293]
[1724283315277,66.3831193,142.46,142.33,6.2682]
[1724283315487,66.3831193,142.46,142.36,13.22]
[1724283315488,1.88118322,142.45,142.36,13.22]
[1724283315793,7.021,142.43,142.33,6.2682]
[1724283315997,20.2405,142.44,142.35,13.22]
[1724283316171,1.75564237,142.43,142.35,13.22]
[1724283316498,13.22,142.44,142.35,13.22]
[1724283317101,6.4079,142.46,142.39,13.22]
[1724283317280,1.75530517,142.45,142.39,13.22]
[1724283317484,6.4079,142.46,142.39,13.22]
[1724283317674,6.4079,142.46,142.41,13.22]
[1724283318100,15.8991,142.47,142.41,13.22]
[1724283319688,15.8991,142.47,142.43,13.22]
[1724283320013,6.0082,142.49,142.43,13.22]
[1724283320308,6.0082,142.49,142.39,6.2617]
[1724283320309,16.3417,142.51,142.45,13.22]
[1724283320682,18.09632522,142.51,142.4,0.12549]
[1724283320883,18.09632522,142.51,142.43,13.22]
[1724283321315,16.3417,142.51,142.43,13.22]
[1724283322183,18.09659898,142.51,142.43,13.22]
[1724283322388,18.09659898,142.51,142.4,0.25098]
[1724283322590,18.09659898,142.51,142.41,33.16]
[1724283323314,18.09659898,142.51,142.4,0.25098]
[1724283323315,7.0179,142.5,142.38,49.2369]
[1724283323605,8.77332117,142.49,142.39,20.0]
[1724283323790,1.7553043,142.48,142.39,20.0]
[1724283324184,8.7739043,142.48,142.38,49.2369]
[1724283324394,22.8457,142.47,142.38,33.16]
[1724283324596,1.75539488,142.46,142.36,42.24947393]
[1724283324803,1.75536886,142.45,142.36,42.24947393]
[1724283325217,1.75536886,142.45,142.36,9.08947393]
[1724283325416,1.75536886,142.45,142.36,42.24947393]
[1724283325588,22.8457,142.47,142.36,42.24947393]
[1724283325589,22.8457,142.47,142.37,20.0]
[1724283326688,22.8457,142.47,142.38,33.16]
[1724283327117,22.8457,142.47,142.4,33.16]
[1724283334095,22.8457,142.47,142.41,0.25098]
[1724283336920,16.3417,142.47,142.42,33.16]
[1724283338139,6.6615,142.51,142.44,33.16]
[1724283338140,22.3784,142.51,142.44,33.16]
[1724283338712,22.3784,142.51,142.45,0.25098]
[1724283340431,22.3784,142.51,142.46,33.16]
[1724283342447,22.3784,142.51,142.47,13.26]
[1724283346818,15.7169,142.51,142.49,13.26]
[1724283349259,1.75417217,142.5,142.41,6.036]
[1724283349548,17.47142184,142.51,142.43,13.26]
[1724283349762,17.47142184,142.51,142.44,20.0]
[1724283350528,15.7169,142.51,142.44,20.0]
[1724283351354,17.47144978,142.51,142.44,20.0]
[1724283352256,6.1839,142.5,142.42,13.26]
[1724283352554,1.75486139,142.49,142.42,13.26]
[1724283352849,6.1839,142.5,142.42,13.26]
[1724283353431,1.75479241,142.49,142.42,13.26]
[1724283353750,6.1839,142.5,142.42,13.26]
[1724283354741,1.75478472,142.49,142.42,13.26]
[1724283355042,6.1839,142.5,142.42,13.26]
[1724283356234,6.1839,142.5,142.4,9.08947393]
[1724283356445,6.1839,142.5,142.42,13.26]
[1724283356757,15.5093,142.49,142.42,13.26]
[1724283357855,1.75496725,142.48,142.42,13.26]
[1724283358072,15.5093,142.49,142.42,13.26]
[1724283359167,15.5093,142.49,142.44,13.26]
[1724283360541,15.5093,142.49,142.43,9.08947393]
[1724283360542,15.5093,142.49,142.46,13.26]
[1724283364877,15.5093,142.49,142.43,0.12549]
[1724283365076,15.5093,142.49,142.46,13.26]
[1724283368076,15.5093,142.49,142.45,13.26]
[1724283371046,15.5093,142.49,142.47,13.26]
[1724283372186,22.2998,142.54,142.47,13.26]
[1724283372427,22.2998,142.54,142.49,13.26]
[1724283373425,22.2998,142.54,142.47,13.26]
[1724283374509,29.3154,142.54,142.47,13.26]
[1724283374823,22.2998,142.54,142.47,13.26]
[1724283376919,22.2998,142.54,142.44,0.12549]
[1724283377136,1.7543923,142.53,142.44,0.12549]
[1724283377344,1.7543923,142.53,142.45,13.26]
[1724283378321,24.0542356,142.54,142.45,13.26]
[1724283378613,22.2998,142.54,142.45,13.26]
[1724283379024,1.75459565,142.53,142.45,13.26]
[1724283379808,1.75459565,142.53,142.46,13.26]
[1724283380021,22.2998,142.54,142.48,13.26]
[1724283380517,22.2998,142.54,142.46,13.26]
[1724283383501,29.61721248,142.54,142.46,13.26]
[1724283385008,15.01438887,142.53,142.45,13.26]
[1724283385922,15.5369,142.52,142.43,13.26]
[1724283386234,6.5126,142.5,142.43,13.26]
[1724283386528,1.75467145,142.49,142.43,13.26]
[1724283387225,8.26727252,142.5,142.43,13.26]
[1724283388215,6.5126,142.5,142.43,13.26]
[1724283389002,6.5126,142.5,142.45,13.26]
[1724283396838,6.5126,142.5,142.43,13.26]
[1724283397139,8.26728061,142.5,142.43,13.26]
[1724283398342,6.5126,142.5,142.43,13.26]
[1724283399024,1.75467981,142.49,142.43,13.26]
[1724283399538,6.5126,142.5,142.43,13.26]
[1724283400532,6.5126,142.5,142.45,13.26]
[1724283405523,6.5126,142.5,142.47,13.26]
[1724283407846,6.5126,142.5,142.44,0.12549]
[1724283407847,6.5126,142.5,142.46,13.26]
[1724283409445,15.5369,142.52,142.46,13.26]
[1724283409627,15.5369,142.52,142.48,13.26]
[1724283420347,15.5369,142.52,142.47,0.12549]
[1724283420552,15.5369,142.52,142.47,0.25098]
[1724283424271,15.5369,142.52,142.46,13.26]
[1724283424571,15.5369,142.52,142.47,0.12549]
[1724283425065,15.5369,142.52,142.47,0.25098]
[1724283425454,15.5369,142.52,142.47,0.12549]
[1724283428775,1.75441661,142.51,142.44,13.26]
[1724283428986,6.4412,142.5,142.45,20.0]
[1724283429752,6.4412,142.5,142.42,13.26]
[1724283430057,6.2257,142.47,142.4,13.26]
[1724283431367,6.2257,142.47,142.41,65.25098]
[1724283435567,6.2257,142.47,142.41,20.25098]
[1724283435772,7.98060265,142.47,142.41,20.25098]
[1724283435976,7.98060265,142.47,142.38,13.26]
[1724283436170,16.32,142.46,142.39,0.25098]
[1724283436584,1.75522299,142.45,142.39,0.25098]
[1724283436966,16.32,142.46,142.39,0.25098]
[1724283437157,16.32,142.46,142.39,20.25098]
[1724283437588,16.32,142.46,142.4,13.26]
[1724283437783,16.32,142.46,142.41,0.25098]
[1724283440600,16.32,142.46,142.41,0.12549]
[1724283441193,16.32,142.46,142.39,20.0]
[1724283441194,22.9393,142.45,142.39,20.0]
[1724283441490,22.9393,142.45,142.38,13.26]
[1724283441666,22.9393,142.45,142.39,20.0]
[1724283442464,22.9393,142.45,142.4,0.12549]
[1724283442762,22.9393,142.45,142.39,20.0]
[1724283442968,16.4585,142.43,142.35,8.58442393]
[1724283443167,6.4808,142.41,142.36,20.0]
[1724283443389,6.4808,142.41,142.35,20.0]
[1724283445171,6.4808,142.41,142.38,13.26]
[1724283446465,6.4808,142.41,142.4,13.26]
[1724283446791,16.4585,142.43,142.4,13.38549]
[1724283448310,16.4585,142.43,142.4,0.12549]
[1724283448603,16.4585,142.43,142.39,0.12549]
[1724283450300,16.4585,142.43,142.38,13.26]
[1724283451307,1.75539441,142.42,142.36,13.26]
[1724283452893,6.5472,142.41,142.34,13.26]
[1724283453208,1.75583283,142.4,142.34,13.26]
[1724283453803,6.5472,142.41,142.34,13.26]
[1724283454391,6.5472,142.41,142.36,13.26]
[1724283455317,6.5472,142.41,142.35,0.12549]
[1724283455318,6.5472,142.41,142.38,13.26]
[1724283457892,1.75550961,142.4,142.34,13.26]
[1724283461023,6.5472,142.41,142.34,13.26]
[1724283461325,15.955,142.4,142.31,53.04]
[1724283461621,17.71092921,142.4,142.34,13.26]
[1724283462712,15.955,142.4,142.34,13.26]
[1724283463891,15.955,142.4,142.36,13.26]
[1724283465292,15.955,142.4,142.36,12.76]
[1724283469715,15.955,142.4,142.32,20.0]
[1724283469920,15.955,142.4,142.35,13.26]
[1724283473621,17.71093467,142.4,142.35,13.26]
[1724283474210,1.75588823,142.39,142.35,13.26]
[1724283475615,17.71094226,142.4,142.35,13.26]
[1724283476333,1.75591766,142.39,142.35,13.26]
[1724283476538,15.955,142.4,142.35,13.26]
[1724283477317,15.955,142.4,142.32,20.0]
[1724283477519,15.955,142.4,142.33,13.26]
[1724283482043,17.71099566,142.4,142.35,13.26]
[1724283482243,17.71099566,142.4,142.34,13.26]
[1724283482244,1.7560305,142.39,142.34,13.26]
[1724283482545,1.7560305,142.39,142.32,20.0]
[1724283482749,1.7560305,142.39,142.33,13.26]
[1724283485731,1.7560305,142.39,142.3,0.8606293]
[1724283486048,1.7560305,142.39,142.31,13.26]
[1724283486224,21.4993,142.38,142.3,0.8606293]
[1724283486428,1.7564062,142.37,142.31,13.26]
[1724283488467,21.4993,142.38,142.31,13.26]
[1724283488966,1.75641747,142.37,142.31,13.26]
[1724283490051,21.4993,142.38,142.31,13.26]
[1724283490451,1.75644209,142.37,142.31,13.26]
[1724283490754,21.4993,142.38,142.31,13.26]
[1724283491631,21.4993,142.38,142.33,13.26]
[1724283492158,21.4993,142.38,142.3,0.8606293]
[1724283492552,21.4993,142.38,142.33,13.26]
[1724283492989,1.75617588,142.37,142.33,13.26]
[1724283493567,1.75617588,142.37,142.31,13.26]
[1724283494980,1.75621663,142.37,142.31,13.26]
[1724283498884,1.75621663,142.37,142.3,0.8606293]
[1724283499190,21.4993,142.38,142.3,14.1206293]
[1724283500181,21.4993,142.38,142.32,13.26]
[1724283502793,21.4993,142.38,142.3,0.8606293]
[1724283502993,21.4993,142.38,142.31,13.26]
[1724283504690,16.3074,142.37,142.3,14.1206293]
[1724283509411,16.3074,142.37,142.3,0.8606293]
[1724283509590,16.3074,142.37,142.31,13.26]
[1724283513917,16.3074,142.37,142.35,13.26]
[1724283515721,16.3074,142.37,142.33,13.26]
[1724283521499,16.3074,142.37,142.35,13.26]
[1724283522613,16.3074,142.37,142.3,0.8606293]
[1724283522818,16.3074,142.37,142.33,13.26]
[1724283523394,16.3074,142.37,142.35,13.26]
[1724283527024,15.8635,142.41,142.35,13.26]
[1724283527898,15.8635,142.41,142.37,13.26]
[1724283532825,15.8635,142.41,142.34,0.12549]
[1724283532826,23.64324579,142.44,142.39,13.26]
[1724283533025,6.4995,142.46,142.42,13.26]
[1724283533326,6.4995,142.46,142.44,13.26]
[1724283533526,16.322,142.48,142.44,13.26]
[1724283535813,1.75497817,142.47,142.35,15.9661]
[1724283536022,6.2093,142.46,142.39,13.26]
[1724283536504,6.2093,142.46,142.41,13.26]
[1724283538942,6.2093,142.46,142.39,13.26]
[1724283541537,6.2093,142.46,142.41,13.26]
[1724283543313,6.2093,142.46,142.43,13.26]
[1724283544716,16.322,142.48,142.43,13.26]
[1724283545360,16.322,142.48,142.45,13.26]
[1724283548227,6.3969,142.5,142.45,13.26]
[1724283548629,6.3969,142.5,142.46,0.12549]
[1724283549361,22.39751094,142.51,142.49,13.26]
[1724283549518,15.0799,142.51,142.49,13.26]
[1724283549719,15.0799,142.51,142.47,13.26]
[1724283551565,15.0799,142.51,142.45,13.26]
[1724283552058,1.75464431,142.5,142.45,13.26]
[1724283553634,15.0799,142.51,142.45,13.26]
[1724283557455,15.0799,142.51,142.47,13.26]
[1724283558759,15.0799,142.51,142.48,1.40349482]
[1724283558962,15.0799,142.51,142.47,13.26]
[1724283559255,15.0799,142.51,142.48,0.25098]
[1724283559932,15.0799,142.51,142.49,13.26]
[1724283561061,15.0799,142.51,142.48,0.25098]
[1724283563183,15.0799,142.51,142.48,0.12549]
[1724283563383,15.0799,142.51,142.47,13.26]
[1724283565764,15.0799,142.51,142.48,0.25098]
[1724283566888,15.0799,142.51,142.49,13.26]
[1724283569295,6.09,142.53,142.49,13.26]
[1724283569484,16.0445,142.54,142.51,13.26]
[1724283570111,16.0445,142.54,142.5,0.12549]
[1724283570903,16.0445,142.54,142.5,13.38549]
[1724283571813,16.0445,142.54,142.5,0.12549]
[1724283571997,16.0445,142.54,142.49,0.12549]
[1724283574107,16.0445,142.54,142.48,0.12549]
[1724283574411,16.0445,142.54,142.47,45.25098]
[1724283575508,1.75421273,142.53,142.47,0.25098]
[1724283575685,16.0445,142.54,142.47,45.25098]
[1724283576698,1.75423807,142.53,142.47,45.25098]
[1724283577499,16.0445,142.54,142.47,45.25098]
[1724283579402,16.0445,142.54,142.48,13.26]
[1724283579599,16.0445,142.54,142.5,13.26]
[1724283582319,16.0445,142.54,142.49,0.25098]
[1724283584134,1.75413217,142.53,142.43,9.43296734]
[1724283584305,16.0445,142.54,142.46,13.26]
[1724283585113,16.0445,142.54,142.48,13.26]
[1724283591127,1.75424335,142.53,142.47,0.12549]
[1724283591430,1.75424335,142.53,142.47,0.25098]
[1724283592422,15.4699,142.51,142.42,9.43296734]
[1724283592613,15.4699,142.51,142.43,20.0]
[1724283592826,15.4699,142.51,142.42,13.26]
[1724283593726,15.4699,142.51,142.43,45.0]
[1724283594026,15.4699,142.51,142.44,0.25098]
[1724283594524,15.4699,142.51,142.42,13.26]
[1724283594525,28.7299,142.51,142.42,13.26]
[1724283594730,30.48479502,142.51,142.43,20.0]
[1724283595038,15.4699,142.51,142.44,13.26]
[1724283595203,15.4699,142.51,142.46,13.26]
[1724283598545,15.4699,142.51,142.47,0.12549]
[1724283600638,17.22435652,142.51,142.43,20.0]
[1724283600951,15.4699,142.51,142.44,13.51098]
[1724283601146,15.4699,142.51,142.46,13.26]
[1724283601451,15.4699,142.51,142.48,13.26]
[1724283602829,15.4699,142.51,142.49,1.40337975]
[1724283603253,15.4699,142.51,142.48,13.26]
[1724283603551,15.4699,142.51,142.49,0.25098]
[1724283605453,15.4699,142.51,142.48,13.26]
[1724283607438,15.4699,142.51,142.49,0.25098]
[1724283613553,16.3547,142.55,142.5,13.26]
[1724283615945,16.3547,142.55,142.52,13.26]
[1724283616766,16.3547,142.55,142.54,13.26]
[1724283616962,6.629,142.56,142.54,13.38549]
[1724283617164,16.6304,142.58,142.54,13.26]
[1724283618035,16.6304,142.58,142.55,1.40285826]
[1724283618236,16.6304,142.58,142.54,13.26]
[1724283618736,16.6304,142.58,142.55,1.40280417]
[1724283619563,16.6304,142.58,142.54,13.26]
[1724283619761,16.6304,142.58,142.55,1.6537297]
[1724283619939,16.6304,142.58,142.55,0.25098]
[1724283621268,7.31378845,142.63,142.55,0.25098]
[1724283621269,16.1808,142.61,142.56,13.26]
[1724283621437,16.1808,142.61,142.57,0.12549]
[1724283622637,16.1808,142.61,142.58,13.26]
[1724283624339,16.1808,142.61,142.59,0.12549]
[1724283624960,16.1808,142.61,142.55,0.12549]
[1724283625271,1.75320352,142.6,142.54,20.0]
[1724283625767,16.1808,142.61,142.54,13.26]
[1724283626077,16.1808,142.61,142.55,20.0]
[1724283627468,16.1808,142.61,142.56,13.26]
[1724283627684,16.1808,142.61,142.57,0.25098]
[1724283628689,16.1808,142.61,142.56,13.26]
[1724283629459,1.75328636,142.6,142.56,13.26]
[1724283629657,17.93416312,142.61,142.56,13.26]
[1724283630184,1.75336232,142.6,142.56,13.26]
[1724283630681,17.93416181,142.61,142.56,13.26]
[1724283631182,17.93416181,142.61,142.55,33.38549]
[1724283631397,17.93416181,142.61,142.56,0.12549]
[1724283633778,1.75336243,142.6,142.56,0.12549]
[1724283637393,17.93416579,142.61,142.56,0.12549]
[1724283637810,1.75336487,142.6,142.56,0.12549]
[1724283638013,1.75336487,142.6,142.53,9.43296734]
[1724283638203,35.064,142.59,142.48,9.43296734]
[1724283638392,1.75400763,142.58,142.48,13.26]
[1724283638599,1.75401642,142.57,142.48,13.26]
[1724283639109,35.064,142.59,142.5,13.26]
[1724283639801,35.064,142.59,142.51,0.12549]
[1724283639992,21.804,142.59,142.52,13.26]
[1724283640912,21.804,142.59,142.54,13.26]
[1724283641704,21.804,142.59,142.53,0.12549]
[1724283642028,21.804,142.59,142.53,0.25098]
[1724283647018,1.75365429,142.58,142.53,0.25098]
[1724283647218,1.75377844,142.57,142.5,13.26]
[1724283647425,15.01377844,142.57,142.45,9.43296734]
[1724283647715,15.01377844,142.57,142.48,13.26]